fUST/lending_fUST_20240308
["ID","MTS","AMOUNT","RATE_DAILY","PERIOD"]
[317531315,1709844638985,-238.79913038,0.00020894,2]
[317531317,1709844638994,-290.38682753,0.00020894,2]
[317531319,1709844639003,-528.39304165,0.00020894,2]
[317531320,1709844639012,-155.13652014,0.00020894,2]
[317531322,1709844639022,-155.13652014,0.00020894,2]
[317531324,1709844639031,-782.08634236,0.00020894,2]
[317531326,1709844639040,-155.13652014,0.00020894,2]
[317531328,1709844639049,-155.13652014,0.00020894,2]
[317531329,1709844639059,-228.73807784,0.000209,2]
[317531331,1709844639068,-247.081804,0.00020993,2]
[317531333,1709844639077,-3000.0,0.0002155,2]
[317531335,1709844639086,-620.94396301,0.00021624,2]
[317531337,1709844639095,-171.8817191,0.00021918,2]
[317531339,1709844639105,-20497.5747463,0.00021995,2]
[317531341,1709844639114,-47639.22233652,0.00021996,2]
[317531343,1709844639123,-874.21597296,0.00022,2]
[317531345,1709844639137,-164.0,0.00022,2]
[317531346,1709844639150,-1668.03514243,0.00022,2]
[317531348,1709844639160,-157.29568872,0.00022191,2]
[317531350,1709844639174,-875.30218491,0.00022191,2]
[317531352,1709844639186,-253.0,0.00022493,2]
[317531354,1709844639195,-500.0,0.00022493,2]
[317531356,1709844639204,-303.2066195,0.00022493,2]
[317531358,1709844639213,-500.0,0.00022493,2]
[317531360,1709844639223,-500.0,0.00022493,2]
[317531362,1709844639232,-500.0,0.00022493,2]
[317531363,1709844639240,-500.0,0.00022493,2]
[317531365,1709844639250,-500.0,0.00022493,2]
[317531367,1709844639260,-500.0,0.00022493,2]
[317531369,1709844639269,-500.0,0.00022493,2]
[317531371,1709844639278,-500.0,0.00022493,2]
[317531373,1709844639287,-500.0,0.00022493,2]
[317531375,1709844639297,-605.66264346,0.00022493,2]
[317531377,1709844639306,-12523.20704872,0.00022494,3]
[317531378,1709844639314,-5000.0,0.00022494,7]
[317531380,1709844639325,-10109.58405907,0.00022494,3]
[317531382,1709844639334,-233.99498804,0.00022495,3]
[317531384,1709844639343,-153.0,0.000225,2]
[317531387,1709844639352,-200.9149876,0.000225,2]
[317531390,1709844639361,-200.9149876,0.000225,2]
[317531393,1709844639369,-153.0,0.000225,2]
[317531396,1709844639378,-200.9149876,0.000225,2]
[317531397,1709844639387,-399.942672,0.000225,2]
[317531400,1709844639396,-153.0,0.000225,2]
[317531402,1709844639405,-170.96724179,0.00022769,2]
[317531404,1709844639415,-657.1666902,0.00022781,2]
[317531406,1709844639424,-173.52457612,0.000228,6]
[317531408,1709844639435,-154.00961775,0.00022897,2]
[317531410,1709844639443,-765.77958558,0.00022898,2]
[317531411,1709844639453,-765.77958554,0.00022899,2]
[317531413,1709844639462,-765.77958554,0.00022899,2]
[317531415,1709844639471,-765.77958554,0.000229,2]
[317531417,1709844639479,-99615.51548107,0.000229,2]
[317531419,1709844639489,-765.77958554,0.000229,2]
[317531421,1709844639497,-23458.95215432,0.000229,2]
[317531423,1709844639506,-1000.0,0.0002295,7]
[317531424,1709844639515,-1000.0,0.00022988,7]
[317531426,1709844639524,-2147.84514482,0.00022988,2]
[317531428,1709844639533,-230.82069681,0.00022988,2]
[317531430,1709844639542,-552.06621984,0.00022988,2]
[317531432,1709844639551,-3342.11779726,0.00022988,2]
[317531434,1709844639560,-1000.0,0.00022988,7]
[317531436,1709844639568,-4927.39071696,0.00022988,3]
[317531437,1709844639578,-2905.03520175,0.00022988,3]
[317531439,1709844639587,-994.09856491,0.00022988,2]
[317531441,1709844639596,-1000.0,0.00022988,7]
[317531443,1709844639605,-426.65743434,0.00022988,2]
[317531445,1709844639615,-1000.0,0.00022988,7]
[317531447,1709844639624,-375.3279772,0.00022988,2]
[317531449,1709844639633,-8242.71882646,0.00022997,2]
[317531450,1709844639642,-478.45343216,0.00022998,2]
[317531452,1709844639651,-197.67761353,0.00022998,2]
[317531454,1709844639660,-7899.56120569,0.00022998,3]
[317531456,1709844639669,-200.74414878,0.00022998,2]
[317531458,1709844639678,-3175.56941218,0.00022998,2]
[317531460,1709844639690,-15440.72364066,0.00022998,2]
[317531462,1709844639699,-170.98414437,0.00022998,2]
[317531464,1709844639708,-201.98126229,0.00022998,2]
[317531465,1709844639717,-178.21335201,0.00022998,2]
[317531467,1709844639727,-860.75138859,0.00022998,2]
[317531469,1709844639737,-185.13888257,0.00022998,2]
[317531471,1709844639746,-182.59036802,0.00022998,2]
[317531473,1709844639755,-3096.31446195,0.00022998,2]
[317531475,1709844639764,-159.96362672,0.00022998,2]
[317531477,1709844639774,-1166.97144352,0.00022998,2]
[317531479,1709844639783,-194.64830155,0.00022998,2]
[317531481,1709844639792,-279.09296088,0.00022998,2]
[317531482,1709844639801,-170.1848002,0.00022998,2]
[317531484,1709844639810,-155.52064643,0.00022998,2]
[317531486,1709844639820,-157.12116013,0.00022998,2]
[317531488,1709844639829,-246.84977647,0.00022998,2]
[317531490,1709844639838,-194.60583292,0.00022998,2]
[317531492,1709844639848,-201.55689597,0.00022998,2]
[317531494,1709844639857,-190.12437285,0.00022998,2]
[317531496,1709844639866,-178.55896063,0.00022998,2]
[317531498,1709844639875,-181.96255062,0.00022998,2]
[317531499,1709844639884,-165.52571142,0.00022998,2]
[317531501,1709844639893,-8606.87493274,0.00022998,2]
[317531503,1709844639902,-155.11012819,0.00022998,2]
[317531505,1709844639911,-176.38342666,0.00022998,2]
[317531507,1709844639921,-272.50112793,0.00022998,2]
[317531509,1709844639930,-682.18594777,0.00022998,2]
[317531511,1709844639942,-193.98165531,0.00022998,2]
[317531513,1709844639951,-310.98409497,0.00022998,2]
[317531515,1709844639961,-365.28955153,0.00022998,2]
[317531516,1709844639970,-444.0566194,0.00022998,2]
[317531518,1709844639979,-1834.48436617,0.00022998,2]
[317531520,1709844639988,-256.16650602,0.00022998,2]
[317531522,1709844639997,-745.52143654,0.00022998,2]
[317531524,1709844640007,-170.23487248,0.00022999,2]
[317531526,1709844640016,-500.0,0.00022999,2]
[317531528,1709844640025,-409.33554177,0.00022999,2]
[317531530,1709844640034,-186.53487923,0.00022999,2]
[317531532,1709844640043,-160.0,0.00022999,2]
[317531534,1709844640052,-160.0,0.00022999,2]
[317531535,1709844640061,-264.4576008,0.00023,3]
[317531537,1709844640070,-2936350.51214754,0.00023,6]
[317532364,1709844648476,-1178.70507563,0.00022988,2]
[317532366,1709844648485,-9327.19119748,0.00023,6]
[317532368,1709844648498,-22464.67745939,0.00023,6]
[317532370,1709844648508,-122748.147,0.00023,6]
[317532372,1709844648520,-3500.0,0.00023,6]
[317533981,1709845833834,-311.24841407,0.000176,2]
[317533983,1709845833844,-300.0,0.00018879,2]
[317533985,1709845833853,-14749.39931739,0.0001888,2]
[317534183,1709845835786,-3260.16526074,0.0001888,2]
[317534185,1709845835798,-2450.03156476,0.0001888,2]
[317534187,1709845835809,-336.5,0.0001888,2]
[317534521,1709845839445,-4093.90385711,0.0001888,2]
[317534523,1709845839457,-170.084437,0.00019178,2]
[317534525,1709845839467,-250.0,0.00019398,2]
[317534527,1709845839477,-3000.0,0.00019404,2]
[317534529,1709845839485,-226.498026,0.00019506,2]
[317534531,1709845839497,-2605.512209,0.00019537,2]
[317534533,1709845839506,-306.80997,0.0002,2]
[317534535,1709845839516,-1000.0,0.0002001,2]
[317534537,1709845839526,-186.175603,0.00020677,2]
[317534539,1709845839535,-155.13652014,0.00020894,2]
[317534541,1709845839549,-745.52143654,0.00020894,2]
[317534543,1709845839558,-155.13652014,0.00020894,2]
[317534546,1709845839568,-344.84500364,0.00020894,2]
[317534549,1709845839577,-404.38801033,0.00020894,2]
[317534553,1709845839589,-155.13652014,0.00020894,2]
[317534555,1709845839598,-155.13652014,0.00020894,2]
[317534557,1709845839607,-155.13652014,0.00020894,2]
[317534559,1709845839617,-221.88808883,0.000209,2]
[317534561,1709845839627,-234.47869537,0.00021,2]
[317534563,1709845839637,-1397.88995671,0.00021,2]
[317534565,1709845839646,-170.084437,0.00021669,2]
[317534566,1709845839655,-174.338933,0.00021918,2]
[317534568,1709845839665,-2603.49710131,0.00021995,2]
[317534571,1709845839677,-17894.07764499,0.00021995,2]
[317534573,1709845839687,-47639.22233652,0.00021996,2]
[317534575,1709845839696,-1668.03514243,0.00022,2]
[317534577,1709845839708,-312.0,0.00022,2]
[317534579,1709845839717,-157.29568872,0.00022,2]
[317534581,1709845839727,-153.0,0.00022055,2]
[317534583,1709845839736,-153.0,0.00022178,2]
[317534585,1709845839745,-875.30218491,0.00022191,2]
[317534587,1709845839755,-312.0,0.00022192,2]
[317534589,1709845839764,-401.7331304,0.00022192,2]
[317534591,1709845839774,-401.8299752,0.00022192,2]
[317534593,1709845839783,-306.0,0.00022192,2]
[317534595,1709845839792,-500.0,0.00022495,2]
[317534597,1709845839801,-303.2066195,0.00022495,2]
[317534599,1709845839811,-500.0,0.00022495,2]
[317534601,1709845839821,-500.0,0.00022495,2]
[317534603,1709845839833,-500.0,0.00022495,2]
[317534605,1709845839843,-500.0,0.00022495,2]
[317534607,1709845839853,-500.0,0.00022495,2]
[317534609,1709845839863,-500.0,0.00022495,2]
[317534611,1709845839873,-500.0,0.00022495,2]
[317534612,1709845839883,-500.0,0.00022495,2]
[317534614,1709845839894,-500.0,0.00022495,2]
[317534617,1709845839905,-500.0,0.00022495,2]
[317534618,1709845839915,-555.66264346,0.00022495,2]
[317534620,1709845839926,-15807.11873989,0.00022496,3]
[317534622,1709845839937,-24164.09486574,0.00022496,3]
[317534625,1709845839946,-5000.0,0.00022496,7]
[317534627,1709845839959,-1707.74000622,0.00022496,3]
[317534628,1709845839969,-4536.2111836,0.00022496,3]
[317534630,1709845839978,-37753.39991806,0.000228,2]
[317534632,1709845839987,-200.8478084,0.000228,2]
[317534634,1709845839997,-173.52457612,0.000228,6]
[317534637,1709845840007,-4214.51201476,0.00022898,2]
[317534638,1709845840016,-765.77958558,0.00022898,2]
[317534640,1709845840025,-765.77958554,0.00022899,2]
[317534642,1709845840035,-765.77958554,0.00022899,2]
[317534645,1709845840045,-765.77958554,0.000229,2]
[317534646,1709845840054,-765.77958554,0.000229,2]
[317534648,1709845840063,-23458.95215432,0.000229,2]
[317534650,1709845840072,-657.1666902,0.00022911,2]
[317534653,1709845840083,-1000.0,0.0002295,7]
[317534656,1709845840092,-1000.0,0.00022987,7]
[317534658,1709845840101,-1000.0,0.00022987,7]
[317534661,1709845840111,-14312.92720116,0.00022987,3]
[317534663,1709845840120,-291.52158584,0.00022987,2]
[317534665,1709845840129,-413.44036905,0.00022987,2]
[317534667,1709845840139,-477.02736512,0.00022987,2]
[317534669,1709845840148,-154.00961775,0.00022992,2]
[317534671,1709845840157,-8242.71882646,0.00022997,2]
[317534674,1709845840167,-1296.23075282,0.00022998,2]
[317534677,1709845840177,-899.14313436,0.00022998,2]
[317534680,1709845840188,-512.51556885,0.00022998,2]
[317534683,1709845840198,-342.12678822,0.00022998,2]
[317534685,1709845840210,-528.15312328,0.00022998,2]
[317534687,1709845840219,-181.65267874,0.00022998,2]
[317534689,1709845840229,-206.60143057,0.00022998,2]
[317534691,1709845840240,-401.64000745,0.00022998,2]
[317534692,1709845840251,-419.46773878,0.00022998,2]
[317534694,1709845840261,-223.79454694,0.00022998,2]
[317534697,1709845840272,-289.52252494,0.00022998,2]
[317534698,1709845840283,-155.24136201,0.00022998,2]
[317534700,1709845840293,-556.58877649,0.00022998,2]
[317534703,1709845840304,-186.33932523,0.00022998,2]
[317534704,1709845840314,-306.14879242,0.00022998,2]
[317534707,1709845840325,-1795.70556896,0.00022998,2]
[317534709,1709845840335,-189.25944553,0.00022998,2]
[317534710,1709845840346,-197.67761353,0.00022998,2]
[317534712,1709845840356,-256.16650602,0.00022998,2]
[317534715,1709845840367,-1834.48436617,0.00022998,2]
[317534716,1709845840377,-178.21335201,0.00022998,2]
[317534718,1709845840387,-194.60583292,0.00022998,2]
[317534720,1709845840398,-3175.56941218,0.00022998,2]
[317534723,1709845840408,-279.09296088,0.00022998,2]
[317534725,1709845840419,-159.96362672,0.00022998,2]
[317534727,1709845840429,-178.55896063,0.00022998,2]
[317534728,1709845840439,-478.45343216,0.00022998,2]
[317534731,1709845840450,-194.64830155,0.00022998,2]
[317534732,1709845840465,-3096.31446195,0.00022998,2]
[317534734,1709845840477,-185.13888257,0.00022998,2]
[317534736,1709845840488,-190.12437285,0.00022998,2]
[317534739,1709845840502,-201.98126229,0.00022998,2]
[317534740,1709845840511,-8606.87493274,0.00022998,2]
[317534743,1709845840522,-444.0566194,0.00022998,2]
[317534744,1709845840535,-170.1848002,0.00022998,2]
[317534746,1709845840545,-15440.72364066,0.00022998,2]
[317534748,1709845840557,-170.98414437,0.00022998,2]
[317534750,1709845840568,-7899.56120569,0.00022998,3]
[317534753,1709845840578,-157.12116013,0.00022998,2]
[317534755,1709845840588,-246.84977647,0.00022998,2]
[317534756,1709845840597,-1166.97144352,0.00022998,2]
[317534759,1709845840607,-181.96255062,0.00022998,2]
[317534760,1709845840616,-682.18594777,0.00022998,2]
[317534762,1709845840626,-165.52571142,0.00022998,2]
[317534763,1709845840636,-193.98165531,0.00022998,2]
[317534765,1709845840645,-176.38342666,0.00022998,2]
[317534767,1709845840655,-272.50112793,0.00022998,2]
[317534769,1709845840664,-201.55689597,0.00022998,2]
[317534771,1709845840673,-365.28955153,0.00022998,2]
[317534773,1709845840682,-182.59036802,0.00022998,2]
[317534775,1709845840692,-310.98409497,0.00022998,2]
[317534777,1709845840701,-860.75138859,0.00022998,2]
[317534779,1709845840713,-310.15352662,0.00022998,2]
[317534781,1709845840723,-178.7611263,0.00022999,2]
[317534783,1709845840732,-201.07046174,0.00022999,2]
[317534785,1709845840742,-160.0,0.00022999,2]
[317534787,1709845840753,-160.0,0.00022999,2]
[317534789,1709845840762,-396.68640119,0.00023,3]
[317534792,1709845840772,-2972896.61912064,0.00023,6]
[317534803,1709845841160,-461.76491476,0.00023,6]
[317534804,1709845841173,-419.30212105,0.00023,6]
[317534805,1709845841185,-5808.99015228,0.00023,6]
[317534806,1709845841197,-16298.25177335,0.00023,6]
[317534807,1709845841210,-221838.2900504,0.00023,6]
[317534809,1709845841236,-1401.49993163,0.00023,6]
[317534920,1709845843314,-174.3389331,0.00022,2]
[317534921,1709845843324,-203.20624948,0.00023,6]
[317534922,1709845843427,-15957.93330273,0.00023,6]
[317534923,1709845843438,-19721.04291981,0.00023,6]
[317534924,1709845843450,-3011.46482442,0.00023,6]
[317534925,1709845843462,-1601.64233081,0.00023,6]
[317534939,1709845846115,-9956.32780013,0.00023,6]
[317534940,1709845846127,-266.45481742,0.00023,6]
[317534941,1709845846138,-72709.98190893,0.00023,6]
[317534942,1709845846279,-7102.73149592,0.00023,6]
[317535809,1709847038305,-10810.95785659,0.00020201,2]
[317535811,1709847038318,-14089.04214341,0.00020201,2]
[317535813,1709847038327,-186.175603,0.00020202,2]
[317535815,1709847038336,-226.498026,0.00020494,2]
[317535817,1709847038346,-404.38801033,0.00020894,2]
[317535831,1709847038458,-155.13186208,0.00020894,2]
[317535833,1709847038468,-344.84500364,0.00020894,2]
[317535835,1709847038477,-155.13186208,0.00020894,2]
[317535837,1709847038488,-360.37231047,0.000209,2]
[317535839,1709847038498,-253.0,0.00020955,2]
[317535841,1709847038508,-47639.22233652,0.00021995,2]
[317535843,1709847038517,-1668.03514243,0.00022,2]
[317535844,1709847038527,-234.0,0.00022,2]
[317535846,1709847038536,-157.29568872,0.00022,2]
[317535848,1709847038546,-234.0,0.00022192,2]
[317535850,1709847038555,-200.9149876,0.000222,2]
[317535852,1709847038565,-153.0,0.000222,2]
[317535854,1709847038574,-399.942672,0.000222,2]
[317535856,1709847038584,-190.168356,0.00022414,2]
[317535858,1709847038593,-164.690733,0.00022414,2]
[317535860,1709847038603,-190.168357,0.00022414,2]
[317535862,1709847038612,-152.467592,0.00022414,2]
[317535864,1709847038622,-617.29584927,0.00022497,2]
[317535866,1709847038631,-630.14396387,0.00022498,3]
[317535868,1709847038644,-7808.0192591,0.00022498,3]
[317535870,1709847038653,-3826.57433043,0.00022498,7]
[317535873,1709847038671,-1173.42566957,0.00022498,7]
[317535875,1709847038681,-17888.657026,0.00022498,3]
[317535877,1709847038690,-4577.88268088,0.00022498,3]
[317535879,1709847038700,-5260.25690193,0.00022498,4]
[317535881,1709847038712,-31444.74171016,0.00022498,4]
[317535883,1709847038722,-153.0,0.000225,2]
[317535885,1709847038731,-200.9149876,0.000225,2]
[317535887,1709847038741,-200.9149876,0.000225,2]
[317535889,1709847038750,-200.9149876,0.000225,2]
[317535890,1709847038759,-111175.97711928,0.000227,2]
[317535938,1709847039479,-2826.24846518,0.000227,2]
[317535940,1709847039489,-171.07958363,0.00022769,2]
[317535941,1709847039500,-152.467592,0.00022788,2]
[317535943,1709847039510,-494.27122985,0.00022898,2]
[317535945,1709847039521,-494.27122984,0.00022899,2]
[317535947,1709847039532,-494.27122984,0.00022899,2]
[317535949,1709847039543,-494.27122984,0.000229,2]
[317535951,1709847039553,-494.27122984,0.000229,2]
[317535953,1709847039563,-1443.82471197,0.000229,2]
[317535955,1709847039574,-164.690733,0.00022975,2]
[317535957,1709847039583,-5145.32903241,0.00022975,2]
[317535959,1709847039592,-171.35902852,0.00022986,2]
[317535962,1709847039604,-1060.48865072,0.00022986,2]
[317535964,1709847039613,-1000.0,0.00022986,7]
[317535965,1709847039622,-666.40473761,0.00022986,2]
[317535967,1709847039632,-914.59372491,0.00022986,2]
[317535969,1709847039641,-1000.0,0.00022986,7]
[317535971,1709847039650,-1000.0,0.00022986,7]
[317535973,1709847039659,-1180.91288676,0.00022986,2]
[317536255,1709847043518,-1944.61436112,0.00022986,2]
[317536258,1709847043528,-186.85337704,0.00022986,2]
[317536261,1709847043537,-192.6043553,0.00022986,2]
[317536263,1709847043546,-710.32121126,0.00022998,2]
[317536265,1709847043554,-492.4302022,0.00022998,2]
[317536383,1709847046407,-371.59300049,0.00022998,2]
[317536385,1709847046418,-10.66804227,0.00022998,2]
[317536387,1709847046427,-882.43303521,0.00022998,2]
[317536389,1709847046436,-7345.25383802,0.00022998,2]
[317536391,1709847046446,-2113.35902263,0.00022998,2]
[317536392,1709847046455,-200.53016737,0.00022998,2]
[317536394,1709847046465,-163.29263954,0.00022998,2]
[317536395,1709847046474,-155.40737978,0.00022998,2]
[317536397,1709847046485,-197.67761353,0.00022998,2]
[317536399,1709847046495,-550.02966035,0.00022999,2]
[317536401,1709847046504,-160.0,0.00022999,2]
[317536404,1709847046602,-160.0,0.00022999,2]
[317536405,1709847046613,-198.34320059,0.00023,3]
[317536406,1709847046623,-37759.14469549,0.00023,6]
[317536593,1709848232484,-170.083863,0.00019857,2]
[317536596,1709848232495,-229.949545,0.0002016,2]
[317536598,1709848232505,-197.0,0.00020229,2]
[317536600,1709848232514,-16678.00895448,0.0002023,2]
[317536602,1709848232528,-1540.188035,0.0002023,2]
[317536610,1709848232596,-2452.98217132,0.0002023,2]
[317536612,1709848232606,-186.158845,0.00020233,2]
[317536614,1709848232617,-155.04651395,0.00020894,2]
[317536616,1709848232628,-37.85934051,0.00020894,2]
[317537128,1709848238506,-1568.06448387,0.00020894,2]
[317537130,1709848238516,-155.03875969,0.00020894,2]
[317537132,1709848238525,-290.38682753,0.00020894,2]
[317537134,1709848238534,-155.03875969,0.00020894,2]
[317537136,1709848238544,-155.03875969,0.00020894,2]
[317537138,1709848238553,-155.88805604,0.00020894,2]
[317537140,1709848238564,-558.12234443,0.00020894,2]
[317537142,1709848238573,-1473.66141674,0.00020894,2]
[317537144,1709848238582,-538.93657172,0.00020894,2]
[317537146,1709848238591,-171.04775531,0.00020894,2]
[317537148,1709848238601,-238.79913038,0.00020894,2]
[317537150,1709848238611,-782.08634236,0.00020894,2]
[317537152,1709848238620,-155.03875969,0.00020894,2]
[317537154,1709848238630,-668.93854649,0.00020894,2]
[317537156,1709848238639,-155.03875969,0.00020894,2]
[317537158,1709848238648,-211.93787119,0.00020894,2]
[317537160,1709848238658,-155.03875969,0.00020894,2]
[317537162,1709848238667,-155.03875969,0.00020894,2]
[317537164,1709848238677,-3143.04140967,0.00020894,2]
[317537166,1709848238686,-155.03875969,0.00020894,2]
[317537168,1709848238696,-176.38342666,0.00020894,2]
[317537170,1709848238705,-155.03875969,0.00020894,2]
[317537171,1709848238714,-179.6642469,0.00020894,2]
[317537172,1709848238723,-155.03875969,0.00020894,2]
[317537173,1709848238732,-2114.14349051,0.00020894,2]
[317537174,1709848238742,-155.03255684,0.00020894,2]
[317537175,1709848238751,-155.03255684,0.00020894,2]
[317537176,1709848238760,-492.66640119,0.000209,2]
[317537177,1709848238769,-621.82758852,0.00021808,2]
[317537178,1709848238778,-20497.5747463,0.00021995,2]
[317537179,1709848238886,-47639.22233652,0.00021995,2]
[317537180,1709848238895,-12603.31086069,0.00021995,2]
[317537181,1709848238905,-500.0,0.00021999,2]
[317537182,1709848238914,-500.0,0.00021999,2]
[317537183,1709848238923,-500.0,0.00021999,2]
[317537184,1709848238932,-453.25665647,0.00021999,2]
[317537185,1709848238941,-500.0,0.00021999,2]
[317537186,1709848238951,-500.0,0.00021999,2]
[317537187,1709848238960,-509.4004352,0.00021999,2]
[317537188,1709848238970,-500.0,0.00021999,2]
[317537189,1709848238979,-500.0,0.00021999,2]
[317537190,1709848238988,-500.0,0.00021999,2]
[317537191,1709848238997,-420.78016222,0.00021999,2]
[317537192,1709848239009,-79.21983778,0.00021999,2]
[317537193,1709848239018,-500.0,0.00021999,2]
[317537194,1709848239028,-200.85722959,0.00021999,2]
[317537195,1709848239037,-500.0,0.00021999,2]
[317537196,1709848239046,-473.8805456,0.00021999,2]
[317537197,1709848239055,-500.0,0.00021999,2]
[317537198,1709848239066,-450.09637911,0.00021999,2]
[317537199,1709848239076,-500.0,0.00021999,2]
[317537200,1709848239085,-500.0,0.00021999,2]
[317537201,1709848239094,-500.0,0.00021999,2]
[317537202,1709848239104,-500.0,0.00021999,2]
[317537203,1709848239113,-500.0,0.00021999,2]
[317537204,1709848239122,-500.0,0.00021999,2]
[317537205,1709848239131,-500.0,0.00021999,2]
[317537206,1709848239140,-500.0,0.00021999,2]
[317537207,1709848239149,-500.0,0.00021999,2]
[317537208,1709848239158,-500.0,0.00021999,2]
[317537209,1709848239167,-500.0,0.00021999,2]
[317537210,1709848239176,-500.0,0.00021999,2]
[317537211,1709848239185,-500.0,0.00021999,2]
[317537212,1709848239194,-500.0,0.00021999,2]
[317537213,1709848239203,-500.0,0.00021999,2]
[317537214,1709848239212,-500.0,0.00021999,2]
[317537215,1709848239222,-500.0,0.00021999,2]
[317537216,1709848239231,-500.0,0.00021999,2]
[317537217,1709848239241,-500.0,0.00021999,2]
[317537218,1709848239251,-500.0,0.00021999,2]
[317537219,1709848239263,-500.0,0.00021999,2]
[317537220,1709848239272,-1668.03514243,0.00022,2]
[317537221,1709848239283,-298.0,0.00022,2]
[317537222,1709848239292,-1000.0,0.00022,2]
[317537223,1709848239302,-157.29568872,0.00022,2]
[317537224,1709848239315,-2195.17265619,0.00022,2]
[317537225,1709848239333,-6047.54617027,0.00022,2]
[317537226,1709848239342,-298.0,0.00022192,2]
[317537227,1709848239352,-2552.7,0.00022199,4]
[317537228,1709848239361,-2238.22480311,0.0002225,2]
[317537229,1709848239370,-349.6153443,0.00022274,2]
[317537230,1709848239379,-306.0,0.00022274,2]
[317537231,1709848239389,-200.9149876,0.00022274,2]
[317537232,1709848239398,-200.9149876,0.00022274,2]
[317537233,1709848239408,-200.9149876,0.00022274,2]
[317537234,1709848239417,-200.9149876,0.00022274,2]
[317537235,1709848239426,-200.9149876,0.00022274,2]
[317537236,1709848239435,-199.5798252,0.00022274,2]
[317537237,1709848239444,-5000.0,0.00022499,7]
[317537238,1709848239454,-3127.18663685,0.00022499,3]
[317537239,1709848239464,-5000.0,0.000225,7]
[317537240,1709848239473,-2000.0,0.000225,2]
[317537241,1709848239482,-5000.0,0.00022502,7]
[317537242,1709848239492,-759.43469007,0.00022502,3]
[317537243,1709848239501,-5000.0,0.00022502,7]
[317537244,1709848239510,-170.083863,0.00022564,2]
[317537245,1709848239519,-657.1666902,0.00022679,2]
[317537246,1709848239529,-173.52457612,0.000228,6]
[317537247,1709848239538,-154.00961775,0.000228,2]
[317537248,1709848239547,-1308.01063203,0.00022886,2]
[317537249,1709848239556,-1308.01063199,0.0002289,2]
[317537250,1709848239568,-1308.01063199,0.00022893,2]
[317537251,1709848239578,-1308.01063199,0.00022897,2]
[317537252,1709848239588,-620.09137943,0.00022899,2]
[317537253,1709848239597,-37753.39991806,0.000229,2]
[317537254,1709848239607,-1308.01063199,0.000229,2]
[317537255,1709848239616,-32515.17765245,0.000229,2]
[317537256,1709848239627,-1771.40506744,0.00022975,2]
[317537257,1709848239636,-6159.18614752,0.00022986,3]
[317537258,1709848239645,-1000.0,0.00022986,7]
[317537259,1709848239655,-14024.29914064,0.00022986,3]
[317537260,1709848239664,-175.30373925,0.00022986,2]
[317537261,1709848239673,-171.84796306,0.00022986,2]
[317537262,1709848239682,-414.64660355,0.00022986,2]
[317537263,1709848239692,-369.55430378,0.00022986,2]
[317537264,1709848239701,-1000.0,0.00022986,7]
[317537265,1709848239710,-214.59372491,0.00022986,2]
[317537266,1709848239721,-225.19678632,0.00022986,2]
[317537267,1709848239730,-249.63691164,0.00022986,2]
[317537268,1709848239740,-365.28955153,0.00022998,2]
[317537269,1709848239750,-1082.9643418,0.00022998,2]
[317537270,1709848239759,-347.73817942,0.00022998,2]
[317537271,1709848239768,-703.45953046,0.00022998,2]
[317537272,1709848239777,-1170.75169083,0.00022998,3]
[317537273,1709848239787,-745.22315814,0.00022998,2]
[317537274,1709848239796,-197.67761353,0.00022998,2]
[317537275,1709848239806,-223.79454694,0.00022998,2]
[317537276,1709848239817,-189.25944553,0.00022998,2]
[317537277,1709848239826,-1834.48436617,0.00022998,2]
[317537278,1709848239835,-306.14879242,0.00022998,2]
[317537279,1709848239844,-272.50112793,0.00022998,2]
[317537280,1709848239853,-181.96255062,0.00022998,2]
[317537281,1709848239862,-159.96362672,0.00022998,2]
[317537282,1709848239870,-279.09296088,0.00022998,2]
[317537283,1709848239879,-3175.56941218,0.00022998,2]
[317537284,1709848239888,-190.12437285,0.00022998,2]
[317537285,1709848239897,-682.18594777,0.00022998,2]
[317537286,1709848239906,-186.33932523,0.00022998,2]
[317537287,1709848239915,-201.55689597,0.00022998,2]
[317537288,1709848239924,-206.60143057,0.00022998,2]
[317537289,1709848239933,-185.13888257,0.00022998,2]